bitfinex/quotes_BTCUSD_20250529
["timestamp","ask_amount","ask_price","bid_price","bid_amount"]
[1748515507545,0.21211085,108480.0,108470.0,1.16185882]
[1748515507760,0.21211085,108480.0,108470.0,1.15263969]
[1748515507983,0.02774507,108480.0,108470.0,1.16185882]
[1748515508210,0.02774507,108480.0,108470.0,1.15263969]
[1748515508418,0.21211085,108480.0,108470.0,1.15263969]
[1748515509057,0.02774499,108480.0,108470.0,1.15263969]
[1748515509489,0.01852679,108480.0,108470.0,1.15263969]
[1748515510129,0.21211085,108480.0,108470.0,1.15263969]
[1748515510579,0.21211085,108480.0,108470.0,1.15264007]
[1748515511987,0.02774507,108480.0,108470.0,1.34624189]
[1748515512203,0.02774507,108480.0,108470.0,1.1618592]
[1748515512421,0.02774499,108480.0,108470.0,1.17107825]
[1748515512635,0.21211077,108480.0,108470.0,1.15264007]
[1748515512863,0.02774499,108480.0,108470.0,1.1618592]
[1748515513316,0.02774439,108480.0,108470.0,1.37389886]
[1748515513544,0.02774439,108480.0,108470.0,1.36467998]
[1748515514033,0.02774439,108480.0,108470.0,1.35538102]
[1748515514258,0.02774439,108480.0,108470.0,1.36459998]
[1748515514902,0.02774439,108480.0,108470.0,1.37381886]
[1748515515113,0.02774439,108480.0,108470.0,1.36459998]
[1748515515546,0.02774439,108480.0,108470.0,1.37381886]
[1748515516471,0.02774439,108480.0,108470.0,1.36459998]
[1748515517482,0.02774439,108480.0,108470.0,1.3726081]
[1748515517697,0.02774439,108480.0,108470.0,1.38182698]
[1748515518132,0.02774431,108480.0,108470.0,1.39104577]
[1748515518360,0.03696233,108480.0,108470.0,1.36338905]
[1748515519020,0.02774422,108480.0,108470.0,1.46366171]
[1748515519225,0.02774422,108480.0,108470.0,1.46366725]
[1748515520054,0.02774422,108480.0,108470.0,1.47288604]
[1748515520297,0.02774422,108480.0,108470.0,1.46366733]
[1748515521205,0.02774422,108480.0,108470.0,1.46366887]
[1748515521752,0.02774422,108480.0,108470.0,1.45771798]
[1748515521980,0.02774422,108480.0,108470.0,1.4669366]
[1748515522197,0.01852628,108480.0,108470.0,1.46693669]
[1748515522437,0.01852628,108480.0,108470.0,1.45771798]
[1748515522667,0.02774431,108480.0,108470.0,1.45771798]
[1748515522925,0.01852628,108480.0,108470.0,1.46693669]
[1748515523154,0.01852628,108480.0,108470.0,1.45771798]
[1748515523383,0.01852628,108480.0,108470.0,1.46693669]
[1748515524054,0.20289206,108480.0,108470.0,0.96463833]
[1748515524291,0.22132837,108480.0,108470.0,0.85768438]
[1748515524516,0.02774431,108480.0,108470.0,1.33228611]
[1748515524742,0.03696251,108480.0,108470.0,1.33228611]
[1748515524964,0.02774431,108480.0,108470.0,1.34150499]
[1748515525189,0.03696242,108480.0,108470.0,1.33228611]
[1748515525547,0.03696242,108480.0,108470.0,1.3322862]
[1748515526005,0.0461807,108480.0,108470.0,1.3322862]
[1748515526772,0.03696242,108480.0,108470.0,1.34150516]
[1748515526983,0.03696242,108480.0,108470.0,1.35810516]
[1748515527191,0.03696242,108480.0,108470.0,0.99106516]
[1748515527415,0.0461807,108480.0,108470.0,1.35806516]
[1748515528298,0.03696242,108480.0,108470.0,1.34886457]
[1748515528520,0.0461807,108480.0,108470.0,1.34886457]
[1748515528735,0.03696242,108480.0,108470.0,1.14604379]
[1748515528959,0.0461807,108480.0,108470.0,1.1644818]
[1748515529944,0.03696242,108480.0,108470.0,1.1644818]
[1748515530146,0.0461807,108480.0,108470.0,1.15526275]
[1748515530443,0.00930842,108480.0,108470.0,1.78547247]
[1748515530652,0.01852628,108480.0,108470.0,1.78547264]
[1748515530888,0.00930842,108480.0,108470.0,1.44913697]
[1748515531095,0.02774405,108480.0,108470.0,1.43991835]
[1748515531313,0.02774405,108480.0,108470.0,1.45835585]
[1748515531521,0.01852611,108480.0,108470.0,1.45835576]
[1748515531735,0.03696191,108480.0,108470.0,1.44913714]
[1748515531950,0.03696182,108480.0,108470.0,2.13469152]
[1748515532593,0.03696182,108480.0,108470.0,1.79835585]
[1748515533249,0.03696174,108480.0,108470.0,1.80757447]
[1748515533476,0.02774388,108480.0,108470.0,1.80757405]
[1748515533705,0.02774388,108480.0,108470.0,1.79835551]
[1748515534471,0.02774388,108480.0,108470.0,1.80757405]
[1748515536111,0.01852611,108480.0,108470.0,1.80757405]
[1748515536317,0.01852611,108480.0,108470.0,2.14390972]
[1748515536753,0.00930842,108480.0,108470.0,2.14390972]
[1748515536910,0.01852619,108480.0,108470.0,2.14390972]
[1748515537743,0.00930842,108480.0,108470.0,2.14390972]
[1748515537906,0.01852619,108480.0,108470.0,2.14390972]
[1748515538106,0.00930834,108480.0,108470.0,2.14390972]
[1748515538525,0.01852594,108480.0,108470.0,2.14390972]
[1748515538951,0.02774371,108480.0,108470.0,2.14390972]
[1748515539702,0.01852594,108480.0,108470.0,2.14390972]
[1748515539926,9.082e-05,108480.0,108470.0,2.14390972]
[1748515540156,9.082e-05,108480.0,108470.0,2.1359016]
[1748515540355,0.001,108500.0,108490.0,0.9160714]
[1748515540557,0.001,108500.0,108490.0,1.39251535]
[1748515540978,0.001,108500.0,108490.0,1.82015835]
[1748515541828,0.001,108500.0,108490.0,1.48882268]
[1748515542263,0.001,108500.0,108490.0,1.82515835]
[1748515542884,0.00104927,108500.0,108490.0,1.82515835]
[1748515543289,0.00104927,108500.0,108490.0,1.79751535]
[1748515543522,0.00204927,108500.0,108490.0,1.810415]
[1748515545119,0.00204927,108500.0,108490.0,2.14251535]
[1748515545379,5.661e-05,108520.0,108510.0,1.25663233]
[1748515545591,5.661e-05,108520.0,108510.0,1.72841235]
[1748515545803,0.00010587,108520.0,108510.0,1.72841235]
[1748515546023,0.00010587,108520.0,108510.0,2.12841235]
[1748515546646,0.00010587,108520.0,108510.0,2.12052294]
[1748515546859,0.00010587,108520.0,108510.0,2.12252294]
[1748515547284,0.00010587,108520.0,108510.0,2.12452294]
[1748515547708,0.00010587,108520.0,108510.0,2.14287255]
[1748515548606,0.00010587,108520.0,108510.0,2.14286467]
[1748515553852,0.03473682,108540.0,108530.0,0.55192193]
[1748515554064,0.01933682,108540.0,108530.0,1.26423113]
[1748515554507,0.01933682,108540.0,108530.0,1.66423113]
[1748515555535,0.01933682,108540.0,108530.0,1.63659046]
[1748515555751,0.06257536,108540.0,108530.0,1.01020084]
[1748515555959,0.05336226,108540.0,108530.0,0.95104084]
[1748515556177,0.06257519,108540.0,108530.0,1.28737651]
[1748515556392,0.05336226,108540.0,108530.0,1.28737651]
[1748515558092,0.05336226,108540.0,108530.0,0.95104084]
[1748515558310,0.06257528,108540.0,108530.0,0.95104084]
[1748515558521,0.05336226,108540.0,108530.0,0.95104084]
[1748515559134,0.06257528,108540.0,108530.0,0.95104084]
[1748515559375,0.05336226,108540.0,108530.0,0.95104084]
[1748515561751,0.05336217,108540.0,108530.0,0.95104084]
[1748515562623,0.04414941,108540.0,108530.0,0.95104084]
[1748515563693,0.04414933,108540.0,108530.0,0.95104084]
[1748515564332,0.03493682,108540.0,108530.0,0.95104084]
[1748515564557,0.04414941,108540.0,108530.0,0.95104084]
[1748515565386,0.04414933,108540.0,108530.0,0.96025488]
[1748515565601,0.04414924,108540.0,108530.0,1.26807651]
[1748515566242,0.04414924,108540.0,108530.0,0.96946883]
[1748515566857,0.03493682,108540.0,108530.0,0.96946883]
[1748515567546,0.00283682,108540.0,108530.0,0.98789614]
[1748515567787,0.00283682,108540.0,108530.0,1.29571726]
[1748515568242,0.00283682,108540.0,108530.0,1.29571735]
[1748515568456,0.00283682,108540.0,108530.0,1.29571675]
[1748515568663,0.00283682,108540.0,108530.0,1.28650331]
[1748515568876,0.00283682,108540.0,108530.0,1.29571675]
[1748515569106,0.00283682,108540.0,108530.0,1.28650331]
[1748515569322,0.00283682,108540.0,108530.0,1.27728978]
[1748515569553,0.00283682,108540.0,108530.0,1.29240559]
[1748515569774,0.00283682,108540.0,108530.0,1.29242481]
[1748515569980,0.00283682,108540.0,108530.0,1.28321128]
[1748515571630,0.00283682,108540.0,108530.0,1.27399767]
[1748515571844,0.00283682,108540.0,108530.0,1.28321128]
[1748515572076,0.00283682,108540.0,108530.0,1.27399775]
[1748515572521,0.00283682,108540.0,108530.0,1.28321145]
[1748515572726,0.00283682,108540.0,108530.0,1.27399775]
[1748515573160,0.00283682,108540.0,108530.0,1.28321145]
[1748515573980,0.00283682,108540.0,108530.0,1.28321361]
[1748515574221,0.00283682,108540.0,108530.0,1.27399991]
[1748515574439,0.00283682,108540.0,108530.0,1.28321361]
[1748515576826,0.00283682,108540.0,108530.0,1.27399991]
[1748515577575,0.00283682,108540.0,108530.0,1.28321361]
[1748515577903,0.00283682,108540.0,108530.0,1.27399991]
[1748515578148,0.00283682,108540.0,108530.0,1.31128913]
[1748515578616,0.00283682,108540.0,108530.0,1.3112919]
[1748515579075,0.00283682,108540.0,108530.0,1.3205056]
[1748515579531,0.00283682,108540.0,108530.0,1.3112919]
[1748515580708,0.00283682,108540.0,108530.0,1.02123812]
[1748515580959,0.00283682,108540.0,108530.0,1.32038577]
[1748515582159,0.00283682,108540.0,108530.0,1.32959947]
[1748515582437,0.00283682,108540.0,108530.0,1.32038577]
[1748515582898,0.00283682,108540.0,108530.0,1.31117232]
[1748515583124,0.00283682,108540.0,108530.0,1.3203861]
[1748515584150,0.00283682,108540.0,108530.0,1.30195845]
[1748515584384,0.00283682,108540.0,108530.0,1.31117232]
[1748515585156,0.00283682,108540.0,108530.0,1.30195845]
[1748515585370,0.00283682,108540.0,108530.0,1.31117223]
[1748515585608,0.00283682,108540.0,108530.0,1.31906164]
[1748515585833,0.00283682,108540.0,108530.0,1.31906173]
[1748515587050,0.00283682,108540.0,108530.0,1.30984786]
[1748515587288,0.00283682,108540.0,108530.0,1.31313497]
[1748515587526,0.00283682,108540.0,108530.0,1.3190626]
[1748515587753,0.06267511,108540.0,108530.0,0.00592763]
[1748515587979,0.0718883,108540.0,108530.0,0.00592763]
[1748515588203,0.24693965,108540.0,108530.0,0.00592763]
[1748515589372,0.24693965,108540.0,108530.0,0.34182453]
[1748515589860,0.04687579,108540.0,108530.0,0.52610537]
[1748515590333,0.04687579,108540.0,108530.0,0.34182453]
[1748515590334,0.23113965,108540.0,108530.0,0.34182453]
[1748515590561,0.04687579,108540.0,108530.0,0.52610537]
[1748515591402,0.0376626,108540.0,108530.0,0.53531941]
[1748515591612,0.0468757,108540.0,108530.0,0.53531954]
[1748515591836,0.05608889,108540.0,108530.0,0.53531954]
[1748515592046,0.24035275,108540.0,108530.0,0.34182466]
[1748515592267,0.25655275,108540.0,108530.0,0.34182466]
[1748515594034,0.05608889,108540.0,108530.0,0.5261055]
[1748515594283,0.24035275,108540.0,108530.0,0.34182466]
[1748515595725,0.03968821,108540.0,108530.0,0.53531954]
[1748515595952,0.03968821,108540.0,108530.0,0.53532061]
[1748515597473,0.21473956,108540.0,108530.0,0.52610657]
[1748515597913,0.21473956,108540.0,108530.0,0.34182573]
[1748515598436,0.02126251,108540.0,108530.0,0.53532061]
[1748515598670,0.04890106,108540.0,108530.0,0.54453448]
[1748515599805,0.03968787,108540.0,108530.0,0.94453448]
[1748515600039,0.04890097,108540.0,108530.0,0.96093448]
[1748515600547,0.03968846,108540.0,108530.0,0.96093456]
[1748515600784,0.01204933,108540.0,108530.0,0.96093456]
[1748515601008,0.00283682,108540.0,108530.0,1.00385111]
[1748515601219,0.00283682,108540.0,108530.0,0.99792228]
[1748515601436,0.00283682,108540.0,108530.0,1.33792228]
[1748515604229,0.00283682,108540.0,108530.0,1.42897623]
[1748515613293,0.00283682,108540.0,108530.0,1.70957623]
[1748515613939,0.00283682,108540.0,108530.0,1.69307623]
[1748515614170,0.00283682,108540.0,108530.0,1.41247623]
[1748515614435,0.00161477,108560.0,108550.0,0.21188306]
[1748515614654,0.00161477,108560.0,108550.0,0.95147957]
[1748515614876,0.00210747,108560.0,108550.0,0.95147957]
[1748515615108,0.00210747,108560.0,108550.0,0.92596773]
[1748515615327,0.00210747,108560.0,108550.0,0.91096773]
[1748515615581,0.00210747,108560.0,108550.0,0.56291165]
[1748515615800,0.00210747,108560.0,108550.0,1.73964799]
[1748515616029,0.00210747,108560.0,108550.0,1.40085774]
[1748515616249,0.00210747,108560.0,108550.0,1.73675464]
[1748515616467,2.3252266,108580.0,108570.0,0.20263398]
[1748515616685,2.3252266,108580.0,108570.0,1.25594824]
[1748515616905,2.32531741,108580.0,108570.0,1.25594824]
[1748515617131,2.32531741,108580.0,108570.0,1.26515829]
[1748515617353,2.32531741,108580.0,108570.0,1.26623808]
[1748515617581,2.32531741,108580.0,108570.0,1.27544813]
[1748515618002,2.32531741,108580.0,108570.0,0.90194761]
[1748515618216,2.32531741,108580.0,108570.0,0.92445412]
[1748515618431,2.32531741,108580.0,108570.0,0.90194761]
[1748515618931,2.32531741,108580.0,108570.0,1.30194761]
[1748515619812,2.32531741,108580.0,108570.0,1.32016161]
[1748515620037,2.32531741,108580.0,108570.0,1.31095156]
[1748515620243,2.32531741,108580.0,108570.0,1.30396169]
[1748515620903,2.32531741,108580.0,108570.0,1.30396178]
[1748515621120,2.34373564,108580.0,108570.0,1.30396178]
[1748515621788,2.36215447,108580.0,108570.0,0.60242695]
[1748515622024,2.56764201,108580.0,108570.0,0.504014]
[1748515622689,2.55843272,108580.0,108570.0,0.504014]
[1748515622891,2.54922318,108580.0,108570.0,0.504014]
[1748515623318,2.54001339,108580.0,108570.0,0.504014]
[1748515623559,2.52001339,108580.0,108570.0,0.504014]
[1748515623781,2.52001339,108580.0,108570.0,0.418214]
[1748515624005,2.52001339,108580.0,108570.0,0.784534]
[1748515624232,2.61106734,108580.0,108570.0,0.418214]
[1748515624475,2.61106734,108580.0,108570.0,0.698694]
[1748515624708,2.61106734,108580.0,108570.0,0.418214]
[1748515624900,2.61106734,108580.0,108570.0,0.298694]
[1748515625368,2.61106734,108580.0,108570.0,0.018214]
[1748515625752,0.23453381,108570.0,108560.0,0.76628]
[1748515625977,0.23453381,108570.0,108560.0,0.4]
[1748515626190,0.23453381,108570.0,108560.0,0.76628]
[1748515627315,0.23453381,108570.0,108560.0,0.76728]
[1748515627542,0.23453381,108570.0,108560.0,0.4868]
[1748515627777,0.23453381,108570.0,108560.0,0.76728]
[1748515627998,0.23453381,108570.0,108560.0,0.36828]
[1748515630651,0.21453381,108570.0,108560.0,0.36728]
[1748515630901,0.22374428,108570.0,108560.0,0.36728]
[1748515631117,0.22374428,108570.0,108560.0,0.36628]
[1748515631763,0.19344132,108560.0,108550.0,0.38409328]
[1748515631968,0.20265256,108560.0,108550.0,1.06457328]
[1748515633283,0.20265256,108560.0,108550.0,0.69929328]
[1748515633495,0.20265256,108560.0,108550.0,1.06557328]
[1748515633715,0.32580651,108560.0,108550.0,0.0868]
[1748515633927,0.21845256,108560.0,108550.0,0.66657328]
[1748515634131,0.20265256,108560.0,108550.0,1.06657328]
[1748515634363,0.19344132,108560.0,108550.0,1.06657328]
[1748515634802,0.20265238,108560.0,108550.0,1.08257328]
[1748515635015,0.21186387,108560.0,108550.0,1.09857328]
[1748515635224,0.22107477,108560.0,108550.0,1.09857328]
[1748515635428,0.22107477,108560.0,108550.0,1.10778553]
[1748515636334,0.03684486,108560.0,108550.0,1.31045667]
[1748515636551,0.01842205,108560.0,108550.0,1.31045667]
[1748515636771,0.02763337,108560.0,108550.0,1.31966867]
[1748515637666,0.02763337,108560.0,108550.0,1.31045667]
[1748515637872,0.01842222,108560.0,108550.0,1.31045667]
[1748515638075,0.02763337,108560.0,108550.0,1.31045667]
[1748515638289,0.02763337,108560.0,108550.0,1.33809867]
[1748515638555,0.02763337,108560.0,108550.0,1.31966867]
[1748515638975,0.01842205,108560.0,108550.0,1.31966867]
[1748515639201,0.02763337,108560.0,108550.0,1.31966867]
[1748515639443,0.01842197,108560.0,108550.0,1.32888042]
[1748515639696,0.20263398,108570.0,108560.0,0.0156]
[1748515639951,0.19342359,108570.0,108560.0,0.33019328]
[1748515640152,0.19342359,108570.0,108560.0,0.31389328]
[1748515640353,0.19342359,108570.0,108560.0,0.69829328]
[1748515641838,2.30531741,108580.0,108570.0,0.23363381]
[1748515642077,2.32373573,108580.0,108570.0,0.62693722]
[1748515642365,2.31452644,108580.0,108570.0,0.6328464]
[1748515642578,2.34215455,108580.0,108570.0,0.84878623]
[1748515642826,2.35765455,108580.0,108570.0,0.84878623]
[1748515643232,2.34215455,108580.0,108570.0,0.84978623]
[1748515643707,2.35136426,108580.0,108570.0,0.85899687]
[1748515643915,2.35136426,108580.0,108570.0,1.25899687]
[1748515644124,2.35136426,108580.0,108570.0,0.95149295]
[1748515644277,2.32373556,108580.0,108570.0,1.25999679]
[1748515644516,2.34215413,108580.0,108570.0,1.26920718]
[1748515644714,2.35136375,108580.0,108570.0,1.26946828]
[1748515644909,2.28531741,108580.0,108570.0,1.13567252]
[1748515645106,2.28531741,108580.0,108570.0,1.44245361]
[1748515645333,2.28531741,108580.0,108570.0,1.15606435]
[1748515645546,2.28531741,108580.0,108570.0,1.43654435]
[1748515645708,2.2779543,108580.0,108570.0,1.20606435]
[1748515645913,2.2779543,108580.0,108570.0,1.48654435]
[1748515646123,2.27059119,108580.0,108570.0,1.48654435]
[1748515646325,2.27059119,108580.0,108570.0,1.20606435]
[1748515646621,2.26322808,108580.0,108570.0,1.48650435]
[1748515647044,2.25586497,108580.0,108570.0,1.48650435]
[1748515647583,2.25586497,108580.0,108570.0,1.48450435]
[1748515647584,2.24850186,108580.0,108570.0,1.48450435]
[1748515647783,2.24850186,108580.0,108570.0,1.48650435]
[1748515647995,2.24850186,108580.0,108570.0,1.48950435]
[1748515647996,2.24114114,108580.0,108570.0,1.48950435]
[1748515648444,2.23378042,108580.0,108570.0,1.48950435]
[1748515648885,2.2264197,108580.0,108570.0,1.48950435]
[1748515649286,2.21905898,108580.0,108570.0,1.48950435]
[1748515649728,2.21169826,108580.0,108570.0,1.48950435]
[1748515650205,2.20433754,108580.0,108570.0,1.48938435]
[1748515650651,2.19697682,108580.0,108570.0,1.48938435]
[1748515651103,2.1896161,108580.0,108570.0,1.48938435]
[1748515651572,2.18225538,108580.0,108570.0,1.48938435]
[1748515651988,2.15489466,108580.0,108570.0,1.48938435]
[1748515652229,2.15489466,108580.0,108570.0,1.49528131]
[1748515652450,2.14753394,108580.0,108570.0,1.48938435]
[1748515652670,2.14753394,108580.0,108570.0,0.8889563]
[1748515652897,2.17516163,108580.0,108570.0,1.4873995]
[1748515653111,2.16595226,108580.0,108570.0,1.4873995]
[1748515653337,2.16595226,108580.0,108570.0,1.2069995]
[1748515653552,2.16595226,108580.0,108570.0,1.4873595]
[1748515653784,2.16595226,108580.0,108570.0,1.18857923]
[1748515653995,2.17516171,108580.0,108570.0,1.45605941]
[1748515654210,2.18437133,108580.0,108570.0,0.96539875]
[1748515654429,2.17516171,108580.0,108570.0,1.06032914]
[1748515654660,2.18437142,108580.0,108570.0,1.04190828]
[1748515654878,2.18437133,108580.0,108570.0,1.34797875]
[1748515655108,2.18437201,108580.0,108570.0,1.34797875]
[1748515655322,2.18437201,108580.0,108570.0,0.96539875]
[1748515655536,2.18437201,108580.0,108570.0,1.33147875]
[1748515655758,2.3593587,108580.0,108570.0,1.14726597]
[1748515655982,2.3593587,108580.0,108570.0,1.165687]
[1748515656203,2.3593587,108580.0,108570.0,0.80867786]
[1748515656454,2.3593587,108580.0,108570.0,1.16554739]
[1748515656678,2.3593587,108580.0,108570.0,1.17475786]
[1748515657101,2.3593587,108580.0,108570.0,1.16554739]
[1748515657563,2.3593587,108580.0,108570.0,1.14712619]
[1748515657564,2.36856849,108580.0,108570.0,1.14712619]
[1748515657784,2.18437251,108580.0,108570.0,1.34054961]
[1748515658221,2.18437251,108580.0,108570.0,1.3405497]
[1748515658435,2.18437251,108580.0,108570.0,1.35897056]
[1748515658861,2.36856849,108580.0,108570.0,1.35897056]
[1748515659036,2.34856849,108580.0,108570.0,1.35897056]
[1748515659489,2.34856849,108580.0,108570.0,0.86676619]
[1748515659709,2.33935904,108580.0,108570.0,1.34054961]
[1748515660153,2.34584942,108580.0,108570.0,0.56847291]
[1748515660376,2.36214942,108580.0,108570.0,0.84883291]
[1748515660611,2.36214942,108580.0,108570.0,1.18883291]
[1748515661067,2.36214942,108580.0,108570.0,0.82275291]
[1748515661558,2.36214942,108580.0,108570.0,1.18883291]
[1748515662000,2.36214942,108580.0,108570.0,1.18879291]
[1748515662680,2.36214942,108580.0,108570.0,0.56847291]
[1748515662921,2.36214942,108580.0,108570.0,0.79879291]
[1748515663375,2.36214942,108580.0,108570.0,0.51847291]
[1748515663623,2.36214942,108580.0,108570.0,0.79879291]
[1748515665002,2.36214942,108580.0,108570.0,0.43275291]
[1748515665467,2.36214942,108580.0,108570.0,0.78972205]
[1748515666106,2.34214942,108580.0,108570.0,0.78972205]
[1748515666757,2.34214942,108580.0,108570.0,0.49072]
[1748515666983,2.34214942,108580.0,108570.0,0.77104]
[1748515667601,2.34214942,108580.0,108570.0,0.005]
[1748515667805,2.34214942,108580.0,108570.0,0.37104]
[1748515668015,2.34214942,108580.0,108570.0,0.005]
[1748515668225,2.34214942,108580.0,108570.0,0.37104]
[1748515668435,2.34214942,108580.0,108570.0,0.38947]
[1748515668620,2.34214942,108580.0,108570.0,0.37104]
[1748515672618,2.43320337,108580.0,108570.0,0.005]
[1748515673295,2.41320337,108580.0,108570.0,0.005]
[1748515673533,2.99181665,108580.0,108570.0,0.005]
[1748515673767,3.3463575,108580.0,108570.0,0.005]
[1748515673990,3.4320775,108580.0,108570.0,0.005]
[1748515674275,3.4330775,108580.0,108570.0,0.005]
[1748515674504,0.23458964,108540.0,108530.0,0.28032]
[1748515674730,0.19349471,108530.0,108520.0,0.76604]
[1748515674976,0.19349471,108530.0,108520.0,0.77547168]
[1748515675437,0.20270849,108530.0,108520.0,0.77543168]
[1748515675673,0.20270849,108530.0,108520.0,1.10592496]
[1748515675915,0.19349471,108530.0,108520.0,1.09061766]
[1748515676396,0.19349471,108530.0,108520.0,1.09161766]
[1748515676856,0.19349471,108530.0,108520.0,0.79332438]
[1748515677991,0.19349471,108530.0,108520.0,0.79336438]
[1748515679302,0.19349471,108530.0,108520.0,0.77696438]
[1748515680181,0.19349471,108530.0,108520.0,0.37696438]
[1748515680635,0.19349471,108530.0,108520.0,0.78617927]
[1748515680852,0.19349471,108530.0,108520.0,0.82739399]
[1748515681306,0.19349471,108530.0,108520.0,0.81825927]
[1748515681532,0.00921361,108530.0,108520.0,1.03020082]
[1748515681766,0.01842697,108530.0,108520.0,1.33770839]
[1748515682213,0.02764084,108530.0,108520.0,1.3284941]
[1748515682432,0.02764075,108530.0,108520.0,1.3284941]
[1748515682865,0.02764075,108530.0,108520.0,1.32849418]
[1748515683791,0.0368547,108530.0,108520.0,1.32849418]
[1748515684001,0.03685462,108530.0,108520.0,1.32849418]
[1748515684890,0.03685462,108530.0,108520.0,1.31927972]
[1748515685321,0.04606866,108530.0,108520.0,1.32849427]
[1748515685539,0.03685462,108530.0,108520.0,1.32849427]
[1748515685761,0.03685462,108530.0,108520.0,1.33770822]
[1748515685990,0.02764075,108530.0,108520.0,1.32849384]
[1748515686216,0.01842697,108530.0,108520.0,1.32849384]
[1748515686464,0.00921336,108530.0,108520.0,1.33770779]
[1748515686691,0.01842689,108530.0,108520.0,0.97158779]
[1748515686937,0.20267131,108550.0,108540.0,0.0315]
[1748515687156,0.20267131,108550.0,108540.0,0.69591328]
[1748515687371,0.20267131,108550.0,108540.0,0.38142]
[1748515687589,0.20267131,108550.0,108540.0,0.76612]
[1748515688042,0.20267131,108550.0,108540.0,0.79802]
[1748515688326,0.20267131,108550.0,108540.0,1.10552647]
[1748515688545,0.20567131,108550.0,108540.0,1.28979033]
[1748515688764,0.21488305,108550.0,108540.0,1.28979033]
[1748515688989,0.21488305,108550.0,108540.0,1.30821645]
[1748515689205,0.03063616,108550.0,108540.0,1.31742938]
[1748515689436,0.03163616,108550.0,108540.0,1.31742938]
[1748515689688,0.03163616,108550.0,108540.0,1.09631328]
[1748515689689,0.02863616,108550.0,108540.0,1.09631328]
[1748515689907,0.03063616,108550.0,108540.0,1.09631328]
[1748515690126,0.03063616,108550.0,108540.0,1.10552647]
[1748515690367,0.21488305,108550.0,108540.0,1.09631328]
[1748515690584,0.20567122,108550.0,108540.0,1.09631328]
[1748515690762,0.20567122,108550.0,108540.0,1.10552647]
[1748515691877,0.20567122,108550.0,108540.0,1.09631328]
[1748515692542,0.20567122,108550.0,108540.0,1.10552647]
[1748515692754,0.20567122,108550.0,108540.0,1.09631328]
[1748515693189,0.20567122,108550.0,108540.0,1.10552647]
[1748515693417,0.02142433,108550.0,108540.0,1.30821611]
[1748515693664,0.02142358,108550.0,108540.0,1.31742879]
[1748515694354,0.03063507,108550.0,108540.0,1.31742879]
[1748515694597,0.02142333,108550.0,108540.0,1.40848274]
[1748515694829,0.02142333,108550.0,108540.0,1.41438454]
[1748515695507,0.01221158,108550.0,108540.0,1.41438454]
[1748515695991,0.003,108550.0,108540.0,1.41438454]
[1748515696220,0.003,108550.0,108540.0,1.13398454]
[1748515696441,0.003,108550.0,108540.0,1.41434454]
[1748515697148,0.003,108550.0,108540.0,1.13398454]
[1748515697360,0.003,108550.0,108540.0,1.41434454]
[1748515698298,0.003,108550.0,108540.0,1.75630447]
[1748515698966,0.002,108550.0,108540.0,1.75630447]
[1748515699190,0.01842171,108560.0,108550.0,0.58338289]
[1748515699418,0.00921081,108560.0,108550.0,0.97863454]
[1748515699860,0.00921081,108560.0,108550.0,1.37863454]
[1748515700850,0.2118831,108570.0,108560.0,0.23415247]
[1748515701093,0.2118831,108570.0,108560.0,0.89848575]
[1748515701324,0.1918831,108570.0,108560.0,0.88927451]
[1748515701550,0.1918831,108570.0,108560.0,1.28927451]
[1748515702234,0.19303085,108570.0,108560.0,1.28927451]
[1748515702461,0.19303085,108570.0,108560.0,1.28006319]
[1748515702685,0.19303085,108570.0,108560.0,1.28927451]
[1748515703114,0.19503085,108570.0,108560.0,1.28927451]
[1748515703793,0.19503085,108570.0,108560.0,0.99098123]
[1748515707128,0.19503085,108570.0,108560.0,1.00019247]
[1748515707348,0.19503085,108570.0,108560.0,0.99098123]
[1748515707989,0.19503085,108570.0,108560.0,1.28927451]
[1748515708662,0.19503085,108570.0,108560.0,1.2892746]
[1748515708907,0.19503085,108570.0,108560.0,1.29848592]
[1748515709473,0.17503085,108570.0,108560.0,1.29848592]
[1748515711536,0.17503085,108570.0,108560.0,1.30769716]
[1748515711760,0.17503085,108570.0,108560.0,1.29848592]
[1748515713626,0.17503085,108570.0,108560.0,1.2892746]
[1748515713850,0.17503085,108570.0,108560.0,1.29848592]
[1748515714061,0.17503085,108570.0,108560.0,1.09583328]
[1748515714493,0.16582055,108570.0,108560.0,1.09583328]
[1748515715139,0.16582055,108570.0,108560.0,1.10172529]
[1748515715359,0.16582055,108570.0,108560.0,1.1201481]
[1748515715579,0.0215681,108570.0,108560.0,1.31358908]
[1748515715792,0.03077857,108570.0,108560.0,1.31358908]
[1748515716429,0.00921047,108570.0,108560.0,1.30437801]
[1748515716855,0.03684197,108570.0,108560.0,1.31358916]
[1748515717064,0.04605202,108570.0,108560.0,1.30437801]
[1748515717278,0.04605202,108570.0,108560.0,1.3228004]
[1748515717495,0.01842035,108570.0,108560.0,1.31358925]
[1748515717745,0.02763091,108570.0,108560.0,1.31358925]
[1748515717946,0.02763091,108570.0,108560.0,1.31358916]
[1748515718183,0.03684155,108570.0,108560.0,1.31358916]
[1748515718387,0.03684155,108570.0,108560.0,1.31358925]
[1748515718917,0.03684155,108570.0,108560.0,1.31359547]
[1748515720239,0.03684155,108570.0,108560.0,1.32280662]
[1748515720499,0.01842035,108570.0,108560.0,1.19275105]
[1748515720714,0.01842035,108570.0,108560.0,1.47299105]
[1748515721173,0.02763074,108570.0,108560.0,1.47299113]
[1748515721395,0.02763074,108570.0,108560.0,1.47299071]
[1748515721596,0.02763074,108570.0,108560.0,1.46377981]
[1748515721807,0.02763074,108570.0,108560.0,1.47299071]
[1748515722007,0.02763074,108570.0,108560.0,1.46377981]
[1748515722936,0.00921005,108570.0,108560.0,1.47299071]
[1748515723147,0.01842027,108570.0,108560.0,1.46377981]
[1748515723369,0.01842027,108570.0,108560.0,1.48085244]
[1748515723587,2.27926917,108580.0,108570.0,0.29829328]
[1748515723802,2.29768783,108580.0,108570.0,0.53972549]
[1748515724030,2.30689686,108580.0,108570.0,0.81075502]
[1748515724240,2.30689686,108580.0,108570.0,1.21075502]
[1748515724463,2.30689686,108580.0,108570.0,1.01733151]
[1748515724692,2.29768783,108580.0,108570.0,1.02654215]
[1748515725330,2.29768783,108580.0,108570.0,1.01733151]
[1748515725834,2.29968783,108580.0,108570.0,1.01733151]
[1748515726101,2.29968783,108580.0,108570.0,1.01191726]
[1748515726307,2.30068783,108580.0,108570.0,1.02898946]
[1748515726520,2.29868783,108580.0,108570.0,1.02898946]
[1748515726738,2.29868783,108580.0,108570.0,1.01977899]
[1748515726957,2.29968783,108580.0,108570.0,1.02898946]
[1748515727776,2.29968783,108580.0,108570.0,1.01977899]
[1748515727994,2.29968783,108580.0,108570.0,1.02898946]
[1748515728432,2.29968783,108580.0,108570.0,1.21320241]
[1748515728896,2.29968783,108580.0,108570.0,1.20399194]
[1748515729396,2.29968783,108580.0,108570.0,0.71227515]
[1748515729598,2.29968783,108580.0,108570.0,1.01977907]
[1748515730241,2.29968783,108580.0,108570.0,0.73069635]
[1748515730672,2.27968783,108580.0,108570.0,0.73069635]
[1748515730885,2.27636909,108580.0,108570.0,0.79787515]
[1748515731321,2.27636909,108580.0,108570.0,0.79001342]